bitfinex/quotes_SOLUSD_20250527
["timestamp","ask_amount","ask_price","bid_price","bid_amount"]
[1748305765496,39.37295292,174.81,174.71,59.7]
[1748305765667,42.66091212,174.81,174.76,20.72330406]
[1748305766486,18.64964886,174.79,174.76,20.72330406]
[1748305767291,18.64964886,174.79,174.75,20.72330406]
[1748305767963,18.64964886,174.79,174.76,20.72330406]
[1748305768577,12.01510469,174.78,174.76,20.72330406]
[1748305777171,18.64964886,174.77,174.75,20.72330406]
[1748305779398,3.43327992,174.76,174.75,20.72330406]
[1748305782001,3.43327992,174.76,174.75,13.2710892]
[1748305786206,12.01510469,174.78,174.75,13.2710892]
[1748305786384,30.66475355,174.78,174.77,13.2710892]
[1748305787010,3.43288705,174.78,174.77,13.2710892]
[1748305788001,3.43288705,174.78,174.77,20.72634809]
[1748305788313,12.0132398,174.81,174.77,20.72634809]
[1748305788610,12.0132398,174.81,174.78,20.72634809]
[1748305790706,12.0132398,174.81,174.79,20.72634809]
[1748305791306,18.64964886,174.8,174.73,85.7]
[1748305791505,18.64964886,174.8,174.75,20.72634809]
[1748305792183,18.64964886,174.78,174.75,20.72634809]
[1748305793909,18.64964886,174.78,174.76,20.72634809]
[1748305794106,3.43308348,174.77,174.76,20.72634809]
[1748305795911,12.01441729,174.79,174.76,20.72634809]
[1748305796101,12.01441729,174.79,174.77,20.72634809]
[1748305800496,3.43269065,174.79,174.78,20.72634809]
[1748305800895,3.43229792,174.81,174.78,20.72634809]
[1748305801095,3.43229792,174.81,174.8,20.72634809]
[1748305803616,18.64964886,174.8,174.72,61.2521]
[1748305803835,18.64964886,174.78,174.73,20.72634809]
[1748305803996,39.37599695,174.76,174.67,61.2886]
[1748305804195,20.72634809,174.75,174.7,20.72634809]
[1748305805925,18.64964886,174.73,174.7,20.72634809]
[1748305807020,3.43406593,174.72,174.7,20.72634809]
[1748305807222,12.01923076,174.72,174.69,20.72634809]
[1748305809322,18.64964886,174.71,174.69,20.72634809]
[1748305810326,3.43445907,174.7,174.69,20.72634809]
[1748305815326,12.02060675,174.7,174.63,61.2039]
[1748305815505,12.02060675,174.7,174.62,130.02]
[1748305815705,12.02060675,174.7,174.62,156.02]
[1748305815931,12.02060675,174.7,174.67,20.72634809]
[1748305817028,12.02060675,174.7,174.66,20.72634809]
[1748305817335,18.64964886,174.69,174.65,20.72634809]
[1748305817830,18.64964886,174.69,174.66,20.72634809]
[1748305819735,18.64964886,174.67,174.66,20.72634809]
[1748305820406,18.64964886,174.67,174.62,85.7]
[1748305820617,18.64964886,174.67,174.65,20.72634809]
[1748305821808,3.43524562,174.66,174.65,20.72634809]
[1748305824948,12.02335967,174.66,174.6,106.42634809]
[1748305825249,18.64964886,174.65,174.6,26.0]
[1748305825448,18.64964886,174.65,174.63,20.72634809]
[1748305826154,18.64964886,174.65,174.64,20.72634809]
[1748305827050,22.08509117,174.65,174.64,20.72634809]
[1748305828547,30.67369695,174.65,174.62,20.72634809]
[1748305828728,30.67369695,174.65,174.58,26.0]
[1748305829045,30.67369695,174.65,174.61,20.72634809]
[1748305830246,30.67369695,174.65,174.55,61.66298698]
[1748305830433,51.40004504,174.65,174.6,20.72634809]
[1748305831842,18.64964886,174.63,174.55,61.66298698]
[1748305832050,18.64964886,174.63,174.59,20.72634809]
[1748305833249,18.64964886,174.61,174.59,20.72634809]
[1748305834044,18.64964886,174.61,174.56,26.0]
[1748305834045,18.64964886,174.61,174.57,26.0]
[1748305834253,18.64964886,174.61,174.59,20.72634809]
[1748305834723,18.64964886,174.61,174.6,20.72634809]
[1748305835448,22.08587817,174.61,174.6,20.72634809]
[1748305838844,3.43622931,174.61,174.6,20.72634809]
[1748305839860,12.02611383,174.62,174.6,20.72634809]
[1748305840055,30.67576269,174.62,174.61,20.72634809]
[1748305846051,30.67576269,174.62,174.6,20.72634809]
[1748305846356,18.64964886,174.61,174.6,20.72634809]
[1748305846734,12.02611383,174.62,174.6,20.72634809]
[1748305847650,3.43642611,174.6,174.57,20.72634809]
[1748305847949,3.43642611,174.6,174.55,0.38898698]
[1748305847950,3.43642611,174.6,174.59,20.72634809]
[1748305849941,18.64964886,174.62,174.59,20.72634809]
[1748305850137,18.64964886,174.62,174.61,20.72634809]
[1748305852053,22.08568138,174.62,174.61,20.72634809]
[1748305852258,30.67576269,174.62,174.6,20.72634809]
[1748305853055,30.67576269,174.62,174.56,26.0]
[1748305853240,30.67576269,174.62,174.6,20.72634809]
[1748305858583,30.67576269,174.62,174.59,20.72634809]
[1748305860285,30.67576269,174.62,174.55,0.38898698]
[1748305860286,68.58227341,174.62,174.55,0.38898698]
[1748305860785,18.64964886,174.6,174.56,20.72634809]
[1748305860976,39.37599695,174.59,174.55,0.38898698]
[1748305861156,36.0,174.58,174.54,29.272693]
[1748305861359,18.64964886,174.56,174.54,29.272693]
[1748305862687,18.64964886,174.56,174.54,8.54634491]
[1748305862989,18.64964886,174.56,174.54,29.272693]
[1748305863680,21.51415759,174.55,174.54,29.272693]
[1748305864988,2.86418055,174.57,174.54,29.272693]
[1748305865195,2.86418055,174.57,174.56,20.72634809]
[1748305867796,10.02444114,174.58,174.56,20.72634809]
[1748305868091,10.02444114,174.58,174.57,20.72634809]
[1748305868291,2.86401649,174.58,174.57,20.72634809]
[1748305869174,2.86401649,174.58,174.54,8.54634491]
[1748305869383,2.86401649,174.58,174.57,20.72634809]
[1748305869868,21.51333729,174.6,174.57,20.72634809]
[1748305870173,21.51333729,174.6,174.59,20.72634809]
[1748305871509,2.86368843,174.6,174.59,20.72634809]
[1748305871860,2.86336043,174.62,174.59,20.72634809]
[1748305872186,2.86336043,174.62,174.61,20.72634809]
[1748305873100,7.1577944,174.64,174.61,20.72634809]
[1748305873101,2.86303252,174.64,174.61,20.72634809]
[1748305873284,2.86303252,174.64,174.63,20.72634809]
[1748305874180,2.86286859,174.65,174.63,20.72634809]
[1748305874383,2.86286859,174.65,174.64,20.72634809]
[1748305878692,2.86237691,174.68,174.64,20.72634809]
[1748305878894,2.86237691,174.68,174.67,20.72634809]
[1748305880897,10.01723449,174.7,174.67,20.72634809]
[1748305882673,10.01723449,174.7,174.68,20.72634809]
[1748305886398,28.66688335,174.7,174.69,20.72634809]
[1748305886603,10.01723449,174.7,174.69,20.72634809]
[1748305887991,10.01723449,174.7,174.65,26.0]
[1748305888170,10.01723449,174.7,174.67,20.72634809]
[1748305889185,28.66688335,174.7,174.67,20.72634809]
[1748305889398,28.66688335,174.7,174.68,20.72634809]
[1748305893399,18.64964886,174.69,174.67,20.72634809]
[1748305893702,39.37599695,174.69,174.65,20.72634809]
[1748305894707,2.86237691,174.68,174.65,20.72634809]
[1748305896904,10.0183192,174.68,174.64,20.72634809]
[1748305898304,10.01946638,174.66,174.61,59.7]
[1748305898485,10.01946638,174.66,174.63,20.72634809]
[1748305899204,10.01946638,174.66,174.61,59.7]
[1748305899205,18.64964886,174.65,174.62,20.72634809]
[1748305900502,10.02061383,174.64,174.63,20.72634809]
[1748305901600,2.86303252,174.64,174.63,20.72634809]
[1748305902903,2.86270468,174.66,174.63,20.72634809]
[1748305903082,28.66911524,174.66,174.65,20.72634809]
[1748305903784,10.01946638,174.66,174.65,20.72634809]
[1748305905209,7.1567617,174.66,174.65,20.72634809]
[1748305906300,7.1567617,174.66,174.64,20.72634809]
[1748305907313,10.01946638,174.66,174.64,20.72634809]
[1748305907813,10.01946638,174.66,174.6,85.7]
[1748305907992,10.01946638,174.66,174.64,20.72634809]
[1748305908589,10.01946638,174.66,174.6,85.7]
[1748305908590,18.64964886,174.65,174.63,20.72634809]
[1748305909001,18.64964886,174.65,174.64,20.72634809]
[1748305910715,21.51251745,174.65,174.64,20.72634809]
[1748305911903,2.86286859,174.65,174.64,20.72634809]
[1748305912915,10.01946638,174.66,174.64,20.72634809]
[1748305913109,28.66911524,174.66,174.65,20.72634809]
[1748305914519,2.86270468,174.66,174.65,20.72634809]
[1748305916695,2.86254079,174.67,174.65,20.72634809]
[1748305918095,2.86254079,174.67,174.66,20.72634809]
[1748305920121,2.86254079,174.67,174.65,20.72634809]
[1748305920302,2.86254079,174.67,174.64,20.72634809]
[1748305921816,2.86254079,174.67,174.6,106.42634809]
[1748305921817,10.01889276,174.67,174.65,20.72634809]
[1748305923711,10.01889276,174.67,174.64,20.72634809]
[1748305925729,10.01889276,174.67,174.65,20.72634809]
[1748305928528,10.01889276,174.67,174.64,20.72634809]
[1748305928912,10.01889276,174.67,174.63,20.72634809]
[1748305928913,18.64964886,174.66,174.63,20.72634809]
[1748305929715,2.86286859,174.65,174.63,20.72634809]
[1748305930626,2.86286859,174.65,174.64,20.72634809]
[1748305930627,28.66968893,174.65,174.64,20.72634809]
[1748305930834,28.66968893,174.65,174.63,20.72634809]
[1748305931934,28.66968893,174.65,174.62,20.72634809]
[1748305932333,28.66968893,174.65,174.59,1.6637]
[1748305932334,39.37599695,174.64,174.59,20.72634809]
[1748305932539,18.64964886,174.62,174.58,20.72634809]
[1748305932706,39.37599695,174.62,174.57,20.72634809]
[1748305932902,18.64964886,174.59,174.54,8.54634491]
[1748305933205,39.37599695,174.59,174.54,29.272693]
[1748305933951,18.64964886,174.57,174.54,8.54634491]
[1748305935029,54.58964886,174.57,174.54,8.54634491]
[1748305935855,2.86434463,174.56,174.54,8.54634491]
[1748305936011,18.64964886,174.55,174.54,8.54634491]
[1748305937436,21.51415759,174.55,174.54,8.54634491]
[1748305950928,42.24050568,174.55,174.54,8.54634491]
[1748305954843,21.51415759,174.55,174.54,29.272693]
[1748305960042,21.51415759,174.55,174.54,8.54634491]
[1748305963849,42.24050568,174.55,174.54,8.54634491]
[1748305975659,45.5178909,174.55,174.54,8.54634491]
[1748305983992,18.64964886,174.51,174.4,66.2063]
[1748305984288,18.64964886,174.47,174.43,13.31696624]
[1748305985877,18.64964886,174.45,174.4,8.1038]
[1748305986182,18.64964886,174.45,174.43,13.31696624]
[1748305986658,10.03095265,174.46,174.44,13.31696624]
[1748305986859,28.68060151,174.46,174.45,13.31696624]
[1748305987056,10.03095265,174.46,174.44,13.31696624]
[1748305987984,28.67887689,174.49,174.45,20.80584418]
[1748305988145,2.86549372,174.49,174.48,20.80584418]
[1748305991477,14.32254368,174.55,174.48,20.80584418]
[1748305991478,10.02604119,174.55,174.48,20.80584418]
[1748305991774,10.02604119,174.55,174.53,20.80584418]
[1748305991775,28.67569005,174.55,174.53,20.80584418]
[1748305991976,28.67569005,174.55,174.47,120.08]
[1748305991977,18.64964886,174.54,174.47,120.08]
[1748305992158,18.64964886,174.54,174.5,20.80584418]
[1748305992959,20.80584418,174.54,174.49,20.80584418]
[1748305993453,18.64964886,174.5,174.46,22.34024418]
[1748305993665,18.64964886,174.5,174.46,20.80584418]
[1748305994283,18.64964886,174.5,174.47,20.80584418]
[1748305995856,2.86549372,174.49,174.47,20.80584418]
[1748305996062,21.51514258,174.49,174.48,20.80584418]
[1748305996957,28.67887689,174.49,174.47,20.80584418]
[1748305997557,10.02922803,174.49,174.47,20.80584418]
[1748305997763,10.02922803,174.49,174.48,20.80584418]
[1748305998061,7.16373431,174.49,174.48,20.80584418]
[1748305998570,7.16373431,174.49,174.46,20.80584418]
[1748305999269,25.81338317,174.49,174.46,20.80584418]
[1748306000163,28.67887689,174.49,174.46,20.80584418]
[1748306001993,18.64964886,174.48,174.45,20.80584418]
[1748306002165,2.8658222,174.47,174.44,20.80584418]
[1748306002366,10.03037771,174.47,174.44,20.80584418]
[1748306002872,10.03037771,174.47,174.42,1.6424]
[1748306003063,10.03037771,174.47,174.44,20.80584418]
[1748306003680,18.64964886,174.46,174.43,20.80584418]
[1748306004482,2.86615075,174.45,174.43,20.80584418]
[1748306005264,10.03152764,174.45,174.43,20.80584418]
[1748306009180,10.03152764,174.45,174.44,20.80584418]
[1748306009379,2.86615075,174.45,174.44,20.80584418]
[1748306011070,7.16435908,174.48,174.44,20.80584418]
[1748306011071,10.03001703,174.48,174.44,20.80584418]
[1748306011374,10.03001703,174.48,174.47,20.80584418]
[1748306012087,7.16435908,174.48,174.47,20.80584418]
[1748306013588,7.16435908,174.48,174.46,20.80584418]
[1748306013886,7.16435908,174.48,174.47,20.80584418]
[1748306014991,7.16435908,174.48,174.43,26.0]
[1748306015281,7.16435908,174.48,174.47,20.80584418]
[1748306022599,7.16435908,174.48,174.46,20.80584418]
[1748306024476,7.16435908,174.48,174.47,20.80584418]
[1748306025123,7.16435908,174.48,174.46,20.80584418]
[1748306025284,7.16435908,174.48,174.44,20.80584418]
[1748306025487,27.97020326,174.48,174.44,20.80584418]
[1748306025790,18.64964886,174.47,174.43,20.80584418]
[1748306025998,18.64964886,174.47,174.44,20.80584418]
[1748306026702,2.86598647,174.46,174.44,20.80584418]
[1748306027100,2.86598647,174.46,174.43,20.80584418]
[1748306034460,2.86598647,174.46,174.44,20.80584418]
[1748306034704,2.86598647,174.46,174.45,20.80584418]
[1748306035223,10.03095265,174.46,174.44,20.80584418]
[1748306035918,10.03095265,174.46,174.44,13.31792193]
[1748306036595,7.16496618,174.46,174.44,13.31792193]
[1748306037002,7.16496618,174.46,174.43,13.31792193]
[1748306037382,7.16496618,174.46,174.44,13.31792193]
[1748306040434,10.03095265,174.46,174.44,13.31792193]
[1748306040937,10.03095265,174.46,174.43,13.31792193]
[1748306041516,10.03095265,174.46,174.44,13.31792193]
[1748306042550,7.16496618,174.46,174.44,13.31792193]
[1748306044924,7.16496618,174.46,174.43,13.31792193]
[1748306047637,10.03095265,174.46,174.43,13.31792193]
[1748306048037,10.03095265,174.46,174.44,13.31792193]
[1748306051416,7.16496618,174.46,174.44,13.31792193]
[1748306051611,7.16496618,174.46,174.43,13.31792193]
[1748306051844,7.16496618,174.46,174.42,13.31792193]
[1748306052042,7.16496618,174.46,174.41,59.7]
[1748306052238,18.64964886,174.45,174.41,13.31792193]
[1748306052751,31.96757079,174.45,174.39,59.7]
[1748306052935,13.31792193,174.43,174.38,13.31792193]
[1748306053128,18.64964886,174.42,174.38,13.31792193]
[1748306053457,2.86730129,174.38,174.37,0.40140632]
[1748306053820,28.68520339,174.38,174.34,13.31792193]
[1748306054220,18.64964886,174.37,174.34,13.31792193]
[1748306055746,2.86763019,174.36,174.34,13.31792193]
[1748306055947,2.86763019,174.36,174.34,20.83265651]
[1748306056966,2.86763019,174.36,174.33,20.83265651]
[1748306057250,2.86763019,174.36,174.34,20.83265651]
[1748306057818,2.86763019,174.36,174.31,26.0]
[1748306058023,2.86763019,174.36,174.34,20.83265651]
[1748306058946,2.86763019,174.36,174.31,26.0]
[1748306058947,18.64964886,174.39,174.35,20.83265651]
[1748306059443,2.86730129,174.38,174.35,20.83265651]
[1748306060349,2.86730129,174.38,174.36,20.83265651]
[1748306060940,2.86730129,174.38,174.35,20.83265651]
[1748306064568,2.86730129,174.38,174.36,20.83265651]
[1748306065456,10.03555453,174.38,174.35,20.83265651]
[1748306065954,10.03555453,174.38,174.31,120.1]
[1748306066258,2.86730129,174.38,174.35,20.83265651]
[1748306066465,2.86730129,174.38,174.36,20.83265651]
[1748306073662,21.51662133,174.4,174.36,20.83265651]
[1748306074042,28.68405252,174.4,174.36,20.83265651]
[1748306074880,10.03440366,174.4,174.37,20.83265651]
[1748306075033,2.86697247,174.4,174.39,20.83265651]
[1748306075236,20.83265651,174.45,174.39,20.83265651]
[1748306075237,18.64964886,174.45,174.39,20.83265651]
[1748306075451,2.86615075,174.45,174.44,20.83265651]
[1748306077171,2.8658222,174.47,174.44,20.83265651]
[1748306077462,2.8658222,174.47,174.45,20.83265651]
[1748306077664,2.8658222,174.47,174.46,20.83265651]
[1748306080691,10.03037771,174.47,174.45,20.83265651]
[1748306084081,43.00913759,174.47,174.39,59.7]
[1748306084393,43.00913759,174.47,174.43,20.83265651]
[1748306085753,24.36228143,174.45,174.41,20.83265651]
[1748306085956,18.64964886,174.44,174.4,20.83265651]
[1748306086469,18.64964886,174.44,174.41,20.83265651]
[1748306087757,2.86647939,174.43,174.41,20.83265651]
[1748306091165,10.03267786,174.43,174.42,20.83265651]
[1748306091587,7.16619847,174.43,174.42,20.83265651]
[1748306099918,7.16619847,174.43,174.42,13.32102923]
[1748306100417,7.16619847,174.43,174.37,85.7]
[1748306100628,7.16619847,174.43,174.4,13.32102923]
[1748306100790,18.64964886,174.42,174.38,13.32102923]
[1748306101221,67.87067809,174.42,174.37,13.32102923]
[1748306101908,75.37613644,174.42,174.37,20.82648758]
[1748306102115,18.64964886,174.4,174.36,20.82648758]
[1748306102501,2.86713687,174.39,174.31,34.4]
[1748306102822,2.86713687,174.39,174.35,20.82648758]
[1748306103221,10.03497906,174.39,174.35,20.82648758]
[1748306103925,10.03497906,174.39,174.38,20.82648758]
[1748306104125,2.86713687,174.39,174.38,20.82648758]
[1748306104624,10.03344885,174.42,174.38,20.82648758]
[1748306104817,10.03344885,174.42,174.41,20.82648758]
[1748306105911,2.86664373,174.42,174.41,20.82648758]
[1748306106116,2.86631506,174.44,174.41,20.82648758]
[1748306106321,2.86631506,174.44,174.43,20.82648758]
[1748306106514,7.1655951,174.45,174.43,20.82648758]
[1748306106837,7.1655951,174.45,174.44,20.82648758]
[1748306118264,10.02922803,174.49,174.44,20.82648758]
[1748306118553,10.02922803,174.49,174.42,20.82648758]
[1748306118554,10.02922803,174.49,174.48,20.82648758]
[1748306124230,2.86549372,174.49,174.48,20.82648758]
[1748306124877,2.86549372,174.49,174.46,20.82648758]
[1748306127164,10.02922803,174.49,174.47,20.82648758]
[1748306128297,10.02922803,174.49,174.48,20.82648758]
[1748306128668,2.86549372,174.49,174.48,20.82648758]
[1748306130162,24.1823161,174.5,174.48,20.82648758]
[1748306130368,2.86537432,174.5,174.49,20.82648758]
[1748306131291,7.16273121,174.52,174.49,20.82648758]
[1748306131589,7.16273121,174.52,174.51,20.82648758]
[1748306131775,7.16273121,174.52,174.46,26.0]
[1748306131965,7.16273121,174.52,174.49,20.82648758]
[1748306132384,7.16273121,174.52,174.46,26.0]
[1748306132588,7.16273121,174.52,174.48,20.82648758]
[1748306132788,18.64964886,174.51,174.46,26.0]
[1748306132963,18.64964886,174.51,174.47,20.82648758]
[1748306133493,2.86532951,174.5,174.47,20.82648758]
[1748306135491,18.64964886,174.49,174.41,26.0]
[1748306135788,18.64964886,174.49,174.45,20.82648758]
[1748306135986,54.52964886,174.49,174.46,20.82648758]
[1748306137799,2.86565795,174.48,174.46,20.82648758]
[1748306137974,10.02980283,174.48,174.45,20.82648758]
[1748306138787,10.02980283,174.48,174.44,20.82648758]
[1748306139612,10.02980283,174.48,174.41,59.7]
[1748306139820,10.02980283,174.48,174.45,20.82648758]
[1748306140613,10.02980283,174.48,174.43,20.82648758]
[1748306140614,18.64964886,174.47,174.43,20.82648758]
[1748306140920,10.02980283,174.48,174.46,20.82648758]
[1748306141119,10.02980283,174.48,174.47,20.82648758]
[1748306141496,10.02980283,174.48,174.44,20.82648758]
[1748306141698,39.47613644,174.47,174.42,20.82648758]
[1748306141999,10.03095265,174.46,174.42,20.82648758]
[1748306142196,30.85744023,174.46,174.41,20.82648758]
[1748306144626,39.47613644,174.45,174.4,20.82648758]
[1748306145822,18.64964886,174.45,174.41,20.82648758]
[1748306146320,2.86631506,174.44,174.41,20.82648758]
[1748306148199,2.86631506,174.44,174.42,20.82648758]
[1748306148427,2.86615075,174.45,174.43,20.82648758]
[1748306148620,2.86615075,174.45,174.44,20.82648758]
[1748306149730,10.03095265,174.46,174.44,20.82648758]
[1748306154025,10.03095265,174.46,174.43,20.82648758]
[1748306154220,10.03095265,174.46,174.42,20.82648758]
[1748306154904,18.64964886,174.45,174.41,20.82648758]
[1748306156347,10.03210272,174.44,174.42,20.82648758]
[1748306157431,7.16578766,174.44,174.43,20.82648758]
[1748306157629,2.86615075,174.45,174.43,20.82648758]
[1748306157838,2.86615075,174.45,174.44,20.82648758]
[1748306160444,2.86602896,174.46,174.44,20.82648758]
[1748306160613,2.86602896,174.46,174.45,20.82648758]
[1748306161629,7.16350392,174.5,174.45,20.82648758]
[1748306161834,10.02883343,174.5,174.47,20.82648758]
[1748306162541,18.64964886,174.49,174.45,20.82648758]
[1748306163235,39.47613644,174.49,174.44,20.82648758]
[1748306163411,18.64964886,174.47,174.43,80.52648758]
[1748306163611,2.86598647,174.46,174.43,20.82648758]
[1748306164350,2.86598647,174.46,174.38,121.6105]
[1748306164351,10.03095265,174.46,174.44,20.82648758]
[1748306164553,10.03095265,174.46,174.45,20.82648758]
[1748306165934,28.67887689,174.49,174.45,20.82648758]
[1748306171847,28.67887689,174.49,174.39,85.7]
[1748306172026,63.83283309,174.49,174.44,20.82648758]
[1748306172948,99.71283309,174.49,174.44,20.82648758]
[1748306176842,18.64964886,174.47,174.42,20.82648758]
[1748306177173,39.47613644,174.47,174.42,20.82648758]
[1748306177339,18.64964886,174.45,174.41,20.82648758]
[1748306177538,37.66149477,174.48,174.38,61.2305]
[1748306177763,18.64964886,174.47,174.43,20.82648758]
[1748306178080,37.66149477,174.48,174.44,20.82648758]
[1748306178235,2.86598647,174.46,174.45,20.82648758]
[1748306181365,2.8658222,174.47,174.45,20.82648758]
[1748306182868,2.8658222,174.47,174.46,20.82648758]
[1748306185684,2.86565795,174.48,174.46,20.82648758]
[1748306185865,2.86565795,174.48,174.47,20.82648758]
[1748306186855,10.02980283,174.48,174.46,20.82648758]
[1748306191196,10.02980283,174.48,174.42,59.7]
[1748306191364,10.02980283,174.48,174.44,20.82648758]
[1748306191558,18.64964886,174.47,174.44,20.82648758]
[1748306191892,20.82648758,174.46,174.39,85.7]
[1748306192060,18.64964886,174.45,174.41,20.82648758]
[1748306192792,21.93375074,174.45,174.41,20.82648758]
[1748306193488,2.86631506,174.44,174.41,20.82648758]
[1748306194390,2.86631506,174.44,174.39,59.7]
[1748306194593,10.03210272,174.44,174.4,20.82648758]
[1748306194772,30.8585903,174.44,174.39,80.52648758]
[1748306195923,10.03210272,174.44,174.41,20.82648758]
[1748306196869,10.03210272,174.44,174.4,20.82648758]
[1748306197270,13.31300775,174.44,174.4,20.82648758]
[1748306198594,34.13949533,174.44,174.39,20.82648758]
[1748306198896,34.13949533,174.44,174.36,85.7]
[1748306198897,75.35613644,174.43,174.38,20.82648758]
[1748306199097,39.47613644,174.41,174.36,80.52648758]
[1748306199302,39.47613644,174.41,174.3,35.88]
[1748306199303,20.82648758,174.4,174.3,35.88]
[1748306199472,20.82648758,174.4,174.35,20.82648758]
[1748306200713,18.64964886,174.38,174.35,20.82648758]
[1748306201512,18.64964886,174.38,174.36,20.82648758]
[1748306201712,2.86746573,174.37,174.36,20.82648758]
[1748306203616,10.03613006,174.37,174.31,26.0]
[1748306203796,10.03613006,174.37,174.36,20.82648758]
[1748306206426,10.03613006,174.37,174.31,26.0]
[1748306206595,10.03613006,174.37,174.36,20.82648758]
[1748306208926,7.16866433,174.37,174.36,20.82648758]
[1748306213929,7.16866433,174.37,174.33,20.82648758]
[1748306214136,7.16866433,174.37,174.34,20.82648758]
[1748306214541,18.64964886,174.36,174.29,61.2147]
[1748306214757,18.64964886,174.36,174.31,20.82648758]
[1748306214959,18.64964886,174.36,174.29,1.5147]
[1748306215143,18.64964886,174.36,174.33,20.82648758]
[1748306216164,2.86779466,174.35,174.33,20.82648758]
[1748306216864,2.86779466,174.35,174.34,20.82648758]
[1748306217947,10.03613006,174.37,174.34,20.82648758]
[1748306218253,10.03613006,174.37,174.29,61.2147]
[1748306218463,10.03613006,174.37,174.35,20.82648758]
[1748306220962,2.86746573,174.37,174.36,20.82648758]
[1748306221847,7.16771937,174.4,174.36,20.82648758]
[1748306222054,7.16771937,174.4,174.39,20.82648758]
[1748306222456,2.86664373,174.42,174.39,20.82648758]
[1748306222751,10.03325306,174.42,174.4,20.82648758]
[1748306223067,10.03325306,174.42,174.41,20.82648758]
[1748306229769,24.36647172,174.42,174.38,20.82648758]
[1748306230074,39.47613644,174.41,174.37,20.82648758]
[1748306231175,10.03440366,174.4,174.36,20.82648758]
[1748306231749,24.36926604,174.4,174.37,20.82648758]
[1748306232058,24.36926604,174.4,174.36,20.82648758]
[1748306233161,10.03555453,174.38,174.35,20.82648758]
[1748306233677,24.37206101,174.38,174.34,20.82648758]
[1748306234069,45.19854859,174.38,174.33,20.82648758]
[1748306235476,2.86763019,174.36,174.33,20.82648758]
[1748306236470,18.64964886,174.35,174.31,20.82648758]
[1748306237579,2.86795916,174.34,174.31,20.82648758]
[1748306237785,2.86795916,174.34,174.32,20.82648758]
[1748306239173,10.03785706,174.34,174.27,27.5973]
[1748306239471,10.03785706,174.34,174.31,20.82648758]
[1748306240998,10.03785706,174.34,174.27,27.5973]
[1748306241183,10.03785706,174.34,174.3,20.82648758]
[1748306242090,18.64964886,174.33,174.3,20.82648758]
[1748306244192,2.8682882,174.32,174.3,20.82648758]
[1748306244913,2.8682882,174.32,174.31,20.82648758]
[1748306247907,2.86795916,174.34,174.31,20.82648758]
[1748306248098,2.86795916,174.34,174.33,20.82648758]
[1748306248688,2.86763019,174.36,174.33,20.82648758]
[1748306249009,2.86763019,174.36,174.35,20.82648758]
[1748306260643,10.03577864,174.38,174.35,20.82648758]
[1748306260939,10.03577864,174.38,174.36,20.82648758]
[1748306263841,10.03577864,174.38,174.37,20.82648758]
[1748306267630,2.86730129,174.38,174.37,20.82648758]
[1748306268129,10.03407386,174.41,174.37,20.82648758]
[1748306268328,10.03407386,174.41,174.4,20.82648758]
[1748306270753,10.03407386,174.41,174.39,20.82648758]
[1748306270934,10.03407386,174.41,174.38,20.82648758]
[1748306274056,10.03407386,174.41,174.39,20.82648758]
[1748306274945,10.03407386,174.41,174.33,142.44298758]
[1748306274946,10.03407386,174.41,174.4,20.82648758]
[1748306281944,10.03407386,174.41,174.33,116.44298758]
[1748306282249,10.03407386,174.41,174.4,20.82648758]
[1748306282860,2.86680809,174.41,174.4,20.82648758]
[1748306284453,7.16580499,174.44,174.4,20.82648758]
[1748306284652,18.64964886,174.43,174.4,20.82648758]
[1748306284877,39.47613644,174.43,174.38,20.82648758]
[1748306286166,18.64964886,174.41,174.38,20.82648758]
[1748306288052,39.47613644,174.41,174.36,20.82648758]
[1748306288229,18.64964886,174.39,174.37,20.82648758]
[1748306289464,2.86730129,174.38,174.37,20.82648758]
[1748306290559,2.86697247,174.4,174.37,20.82648758]
[1748306290761,10.03440366,174.4,174.38,20.82648758]
[1748306294983,10.03440366,174.4,174.39,20.82648758]
[1748306296679,7.16743119,174.4,174.39,20.82648758]
[1748306299082,2.86680809,174.41,174.39,20.82648758]
[1748306299292,2.86680809,174.41,174.4,20.82648758]
[1748306300383,2.86615075,174.45,174.4,20.82648758]
[1748306300683,2.86615075,174.45,174.44,20.82648758]
[1748306300884,10.03122201,174.46,174.44,20.82648758]
[1748306301696,10.03122201,174.46,174.45,20.82648758]
[1748306304812,10.03122201,174.46,174.39,61.3424]
[1748306305012,10.03122201,174.46,174.45,20.82648758]
[1748306307812,10.03122201,174.46,174.42,20.82648758]
[1748306308014,30.85770959,174.46,174.41,20.82648758]
[1748306308319,10.03122201,174.46,174.42,20.82648758]
[1748306310811,10.03210272,174.44,174.41,20.82648758]
[1748306313123,10.03210272,174.44,174.42,20.82648758]
[1748306313428,2.86631506,174.44,174.43,20.82648758]
[1748306313629,2.86598647,174.46,174.43,20.82648758]
[1748306313811,2.86598647,174.46,174.45,20.82648758]
[1748306314932,2.86598647,174.46,174.42,22.44138758]
[1748306314933,2.86598647,174.46,174.42,1.6149]
[1748306315109,2.86598647,174.46,174.45,20.82648758]
[1748306315841,2.86585348,174.47,174.45,20.82648758]
[1748306316027,2.86585348,174.47,174.46,20.82648758]
[1748306316946,10.02889385,174.5,174.46,20.82648758]